{"text_format":"1","workbook":"xlsx","n_sheets":1,"sheets":["Form_44"],"not_rendered":{"charts":0,"images":2,"macros":1,"external_links":2,"defined_names":13,"comments":1,"pivot_tables":0},"unopened":[],"bounds":{"document_bytes":16777216,"sheet_cells":100000,"rows_first":2000,"rows_last":500,"rows_between":2000,"halvings":0,"cell_chars":16384,"cell_head_chars":4096},"cells_cut":0,"cells_raw":0,"read":"whole","date_system":"1900"}

{"sheet":"Form_44","index":0,"n_rows":34,"n_cols":46,"rows_kept":34,"cut":false,"hidden":false,"merged":[[33,0,34,1],[33,2,34,23],[33,28,34,31],[33,32,34,34],[5,0,5,34],[6,0,6,34],[27,2,27,34],[30,1,30,34],[31,1,31,34],[7,33,10,33],[7,34,10,34],[7,3,7,28],[25,0,25,32],[28,1,28,34],[7,0,10,0],[7,29,10,29],[1,33,1,34],[2,0,2,34],[3,0,3,34],[1,0,1,31],[4,0,4,34],[7,30,10,30],[7,31,10,31],[7,32,10,32],[7,1,10,1],[32,1,32,34]]}
[]
["jktLFkku ljdkj\nçkfof/kd f'k{kk e.My] jktLFkku] tks/kiqj \nijh{kk l= 2021&22 ¼bath-] okf\"kZd ;kstuk eq[; ijh{kk½",null,null,null,null,null,null,null,null,null,null,null,null,null,null,null,null,null,null,null,null,null,null,null,null,null,null,null,null,null,null,null,null,"ikfjJfed foi=&44",null,null,null,null,null,null,0,null,null,null,0,11]
["ijh{kk dsUnz @laLFkku dk uke ,oa iwjk irk--------------------------------------------------------------------------------------------------------------------------------------------------- ijh{kk dsUnz dksM----------------------------------------------------------------------------------------------",null,null,null,null,null,null,null,null,null,null,null,null,null,null,null,null,null,null,null,null,null,null,null,null,null,null,null,null,null,null,null,null,null,null,null,null,null,null,null,1,null,null,null,1,12]
["ijh{kk dsUnz@laLFkku ds cSad dk uke ------------------------------------------------------------------------  [kkrk la[;k ----------------------laLFkku dk isu uEcj---------------------------------- vkbZ,Q,llh dksM----------------------------------------",null,null,null,null,null,null,null,null,null,null,null,null,null,null,null,null,null,null,null,null,null,null,null,null,null,null,null,null,null,null,null,null,null,null,null,null,null,null,null,2,null,null,null,2,13]
[null,null,null,null,null,null,null,null,null,null,null,null,null,null,null,null,null,null,null,null,null,null,null,null,null,null,null,null,null,null,null,null,null,null,null,null,null,null,null,null,null,null,null,null,null,14]
["¼1½ dkWye dksM es ijh{kk dsUnz v/kh{kd gsrq 11] vfrfjDr ijh{kk dsUnzz  v/kh{kd gsrq 12] ijh{kk oh{kd gsrq 13] Eak=kyf;d gsrq 14 ,oa prqFkZ Js.kh deZpkjh gsrq 15 vafdr djsaA",null,null,null,null,null,null,null,null,null,null,null,null,null,null,null,null,null,null,null,null,null,null,null,null,null,null,null,null,null,null,null,null,null,null,null,null,null,null,null,null,null,null,null,null,15]
["¼2½ fnukad @ikjh okys dkWye esa mifLFkfr fnol @ ikjh ds fnu 1 vafdr djsa vuqifLFfr ij 0 vafdr djsaA dqy jkf'k okys dkWye  esa x.kuk Lor% gh gksxhA vr% bl dkWye esa dqN vafdr ugha djsA"]
["SN.","Officer/Employee Name in Capital Letters with Designation\n",null,"Exam Date",null,null,null,null,null,null,null,null,null,null,null,null,null,null,null,null,null,null,null,null,null,null,null,null,null,"EXTRA-BEFORE","EXTRA-AFTER","TOTAL SESSIONS","RATE","TOTAL AMOUNT","SIGNATURE"]
[null,null,null,"2022-05-30","2022-05-31","2022-06-01","2022-06-03","2022-06-04","2022-06-06","2022-06-07","2022-06-08","2022-06-09","2022-06-10","2022-06-11","2022-06-13","2022-06-14","2022-06-15","2022-06-16","2022-06-17","2022-06-18","2022-06-20","2022-06-21","2022-06-22","2022-06-23","2022-06-24","2022-06-25","2022-06-27","2022-06-28","2022-06-29"]
[null,null,"STUDENT STRENGTH"]
[null,null,"CODE"]
[{"$f":"IF(B12=\"\",\"\",1)","v":""},null,null,null,null,null,null,null,null,null,null,null,null,null,null,null,null,null,null,null,null,null,null,null,null,null,null,null,0,null,null,{"$f":"SUM(D12:AE12)","v":0},null,{"$f":"IF(C12=\"\",0,IF(B12=\"\",0,IF(C12=11,AF12*100,IF(C12=12,AF12*75,IF(C12=13,ROUND(AF12*70,0),IF(C12=14,AF12*40,IF(C12=15,AF12*30)))))))","v":0}]
[{"$f":"IF(B13=\"\",\"\",#REF!+1)","v":""},null,null,null,null,null,null,null,null,null,null,null,null,null,null,null,null,null,null,null,null,null,null,null,null,null,null,null,null,null,null,{"$f":"SUM(D13:AE13)","v":0},null,{"$f":"IF(C13=\"\",0,IF(B13=\"\",0,IF(C13=11,AF13*100,IF(C13=12,AF13*75,IF(C13=13,ROUND(AF13*70,0),IF(C13=14,AF13*40,IF(C13=15,AF13*30)))))))","v":0}]
[{"$f":"IF(B14=\"\",\"\",#REF!+1)","v":""},null,null,null,null,null,null,null,null,null,null,null,null,null,null,null,null,null,null,null,null,null,null,null,null,null,null,null,null,null,null,{"$f":"SUM(D14:AE14)","v":0},null,{"$f":"IF(C14=\"\",0,IF(B14=\"\",0,IF(C14=11,AF14*100,IF(C14=12,AF14*75,IF(C14=13,ROUND(AF14*70,0),IF(C14=14,AF14*40,IF(C14=15,AF14*30)))))))","v":0}]
[{"$f":"IF(B15=\"\",\"\",#REF!+1)","v":""},null,null,null,null,null,null,null,null,null,null,null,null,null,null,null,null,null,null,null,null,null,null,null,null,null,null,null,null,null,null,{"$f":"SUM(D15:AE15)","v":0},null,0]
[{"$f":"IF(B16=\"\",\"\",A15+1)","v":""},null,null,null,null,null,null,null,null,null,null,null,null,null,null,null,null,null,null,null,null,null,null,null,null,null,null,null,null,null,null,{"$f":"SUM(D16:AE16)","v":0},null,0]
["",null,null,null,null,null,null,null,null,null,null,null,null,null,null,null,null,null,null,null,null,null,null,null,null,null,null,null,null,null,null,0,null,0]
["",null,null,null,null,null,null,null,null,null,null,null,null,null,null,null,null,null,null,null,null,null,null,null,null,null,null,null,null,null,null,0,null,0]
[null,null,null,null,null,null,null,null,null,null,null,null,null,null,null,null,null,null,null,null,null,null,null,null,null,null,null,null,null,null,null,0,null,0]
[null,null,null,null,null,null,null,null,null,null,null,null,null,null,null,null,null,null,null,null,null,null,null,null,null,null,null,null,null,null,null,0,null,0]
[null,null,null,null,null,null,null,null,null,null,null,null,null,null,null,null,null,null,null,null,null,null,null,null,null,null,null,null,null,null,null,0,null,0]
[null,null,null,null,null,null,null,null,null,null,null,null,null,null,null,null,null,null,null,null,null,null,null,null,null,null,null,null,null,null,null,0,null,0]
[null,null,null,null,null,null,null,null,null,null,null,null,null,null,null,null,null,null,null,null,null,null,null,null,null,null,null,null,null,null,null,0,null,0]
[null,null,null,null,null,null,null,null,null,null,null,null,null,null,null,null,null,null,null,null,null,null,null,null,null,null,null,null,null,null,null,0,null,0]
[null,null,null,null,null,null,null,null,null,null,null,null,null,null,null,null,null,null,null,null,null,null,null,null,null,null,null,null,null,null,null,0,null,0]
["Grand Total",null,null,null,null,null,null,null,null,null,null,null,null,null,null,null,null,null,null,null,null,null,null,null,null,null,null,null,null,null,null,null,null,{"$f":"SUM(AH12:AH25)","v":0}]
[null,"dqy :Ik;s vadks esa",{"$f":"+AH26","v":0}]
[null,"dqy :Ik;s 'kCnksa esa ",{"$f":"IF(AH26>0, SUBSTITUTE(spellnumber(AH26),\"Dollars and No Cents\",\"only\"),\"Rupees ….Nil ….\")","v":"Rupees ….Nil …."}]
[null,"No.                                         e.My dk;kZy; ç;ksxkFkZ\nfnukad                                          çekf.kr ,oa ikfjr \n\n"]
["izek.k i=%&"]
[1,"izekf.kr fd;k tkrk gS fd izkfof/kd f'k{kk e.My] jktFkku] tks/kiqj ijh{kk ckcr~ le;&le; ij izlkfjr funsZ'k ;Fkk ijh{kk v/kh{kd funsZ'k iqfLrwdk dh ikyuk djrs gq, fu/kkZfjr ekin.M vuqlkj dkfeZdksa dh lsok,as izkIr djrs gq, ikfjJfed nkok funsZ'kkuqlkj vko';d foi=ksa dks layXu djrs gq, izLrqr fd;k x;k gSA"]
[2,"Hkqxrku gsrq ;g fcy izFke ckj izLrqr x;k gSA"]
[3,"Hkqxrku forj.k I'pkr izkfIr jlhn e.My dks fHktok nh tk;sxhA"]
["izHkkjh vf/kdkjh",null,"izHkkjh",null,null,null,null,null,null,null,null,null,null,null,null,null,null,null,null,null,null,null,null,null,null,null,null,null,null,null,null,null,"iz/kkukpk;Z gLrk{kj e; lhy"]